bitfinex/quotes_BTCUSD_20230117
["timestamp","ask_amount","ask_price","bid_price","bid_amount"]
[1673917139256,0.19072595,21107.0,21104.0,0.473825]
[1673917139494,0.0756,21106.0,21104.0,0.473825]
[1673917139739,0.321719,21105.0,21104.0,0.473825]
[1673917139976,0.0756,21106.0,21104.0,0.473825]
[1673917142199,0.02033314,21105.0,21104.0,0.473825]
[1673917142940,0.02033314,21105.0,21103.0,0.48948868]
[1673917143197,0.0761,21106.0,21103.0,0.96336968]
[1673917143688,0.0761,21106.0,21104.0,0.3]
[1673917143941,0.05,21110.0,21105.0,1.743182]
[1673917144222,0.05,21110.0,21106.0,0.41968905]
[1673917144438,0.05,21110.0,21107.0,0.59346005]
[1673917144696,0.05,21110.0,21107.0,1.06723605]
[1673917145197,0.05,21110.0,21107.0,0.947547]
[1673917146438,0.05,21110.0,21108.0,0.3]
[1673917146678,0.05,21110.0,21108.0,1.247491]
[1673917147416,0.05,21110.0,21108.0,1.36286005]
[1673917147650,0.05,21110.0,21109.0,0.471719]
[1673917147936,0.05,21110.0,21109.0,1.269181]
[1673917148687,0.05042462,21110.0,21109.0,0.947462]
[1673917148931,0.05,21110.0,21109.0,0.947462]
[1673917149157,0.05,21110.0,21109.0,1.247462]
[1673917151116,0.05,21110.0,21109.0,0.947462]
[1673917151627,0.05,21110.0,21109.0,1.247462]
[1673917151878,0.05,21110.0,21109.0,3.26549299]
[1673917152153,0.05,21110.0,21109.0,3.2958701]
[1673917152859,0.05,21110.0,21109.0,3.63438239]
[1673917153412,0.05,21110.0,21109.0,3.2958701]
[1673917153651,0.05,21110.0,21109.0,3.15430394]
[1673917154864,0.04500001,21110.0,21109.0,3.49204963]
[1673917155353,0.04500001,21110.0,21109.0,3.29583125]
[1673917155603,0.04500001,21110.0,21109.0,3.15430394]
[1673917157062,0.04500001,21110.0,21109.0,3.29583125]
[1673917157323,0.04500001,21110.0,21109.0,3.15430394]
[1673917159411,0.04500001,21110.0,21109.0,3.07800394]
[1673917160435,0.04500001,21110.0,21109.0,3.15350394]
[1673917160990,0.04500001,21110.0,21109.0,3.29503125]
[1673917161738,0.04500001,21110.0,21109.0,3.15350394]
[1673917162856,0.04500001,21110.0,21109.0,3.29503125]
[1673917163115,0.04500001,21110.0,21109.0,3.15350394]
[1673917163874,0.04500001,21110.0,21109.0,3.29503125]
[1673917164130,0.04500001,21110.0,21109.0,3.15350394]
[1673917164386,0.00662736,21113.0,21110.0,0.15]
[1673917164709,0.00662736,21113.0,21112.0,0.1526]
[1673917164917,0.00662736,21113.0,21112.0,1.40146969]
[1673917165175,0.00662736,21113.0,21112.0,2.20729769]
[1673917165456,0.00662736,21113.0,21112.0,2.13099769]
[1673917168315,0.00662736,21113.0,21112.0,2.05469769]
[1673917169112,0.00662736,21113.0,21112.0,1.577496]
[1673917169354,0.19735331,21113.0,21112.0,0.947328]
[1673917169644,0.19235331,21113.0,21112.0,0.947328]
[1673917169951,0.39746636,21113.0,21112.0,0.473664]
[1673917171244,0.39746636,21113.0,21111.0,0.473686]
[1673917171512,0.321719,21112.0,21111.0,0.473686]
[1673917171770,0.321719,21112.0,21108.0,0.473732]
[1673917172046,0.58856957,21111.0,21108.0,0.473732]
[1673917172305,0.321719,21110.0,21107.0,0.473775]
[1673917172777,0.321719,21109.0,21107.0,0.473775]
[1673917172803,0.19072595,21110.0,21107.0,0.473775]
[1673917173046,0.0757,21111.0,21107.0,0.473775]
[1673917173292,0.0757,21111.0,21107.0,0.947551]
[1673917173293,0.00042462,21110.0,21107.0,0.947551]
[1673917174064,0.00042462,21110.0,21108.0,0.3]
[1673917174305,0.0757,21111.0,21108.0,1.247485]
[1673917174306,0.01691175,21109.0,21108.0,1.247485]
[1673917175320,0.0757,21112.0,21108.0,1.247485]
[1673917175576,0.00042462,21111.0,21108.0,1.36717405]
[1673917175830,0.00042462,21111.0,21108.0,1.247485]
[1673917176096,0.0757,21112.0,21108.0,1.247485]
[1673917176420,0.0169644,21111.0,21109.0,0.11968905]
[1673917176621,0.0169644,21111.0,21110.0,0.947418]
[1673917176851,0.01738902,21111.0,21110.0,0.947418]
[1673917177112,0.01738902,21111.0,21110.0,0.473709]
[1673917178135,0.0169644,21111.0,21110.0,0.473709]
[1673917178930,0.0169644,21111.0,21110.0,0.947418]
[1673917179167,0.0169644,21111.0,21110.0,1.247418]
[1673917179407,0.41682736,21113.0,21110.0,1.569137]
[1673917179657,0.41682736,21113.0,21111.0,0.3]
[1673917179943,0.41682736,21113.0,21112.0,0.947328]
[1673917179944,0.00162736,21113.0,21112.0,0.947328]
[1673917180254,0.00162736,21113.0,21112.0,1.247328]
[1673917180470,0.00162736,21113.0,21112.0,1.644647]
[1673917183566,0.00162736,21113.0,21112.0,2.59214427]
[1673917184928,0.00162736,21113.0,21112.0,3.07784596]
[1673917185178,0.00162736,21113.0,21112.0,3.29507327]
[1673917186180,0.00162736,21113.0,21112.0,3.63155043]
[1673917186691,0.00162736,21113.0,21112.0,2.77784596]
[1673917187465,0.00162736,21113.0,21112.0,2.91937327]
[1673917188030,0.00162736,21113.0,21112.0,3.07784596]
[1673917189466,0.00162736,21113.0,21112.0,3.21937327]
[1673917189746,0.00162736,21113.0,21112.0,3.6492275]
[1673917190030,0.00146463,21113.0,21112.0,4.12699155]
[1673917190290,0.00146463,21113.0,21112.0,3.91478627]
[1673917190549,0.00146463,21113.0,21112.0,3.91495845]
[1673917190813,0.00146463,21113.0,21112.0,3.63168494]
[1673917191325,0.00146463,21113.0,21112.0,3.63167685]
[1673917191582,0.19219058,21113.0,21112.0,3.48504]
[1673917191867,0.19219058,21113.0,21112.0,3.55584091]
[1673917191868,0.00146463,21113.0,21112.0,3.55584091]
[1673917192113,0.00146463,21113.0,21112.0,3.41418019]
[1673917192350,0.00146463,21113.0,21112.0,3.69752714]
[1673917192615,0.00146463,21113.0,21112.0,3.41418019]
[1673917192887,0.00146463,21113.0,21112.0,2.65479142]
[1673917193159,0.00146463,21113.0,21112.0,2.43380428]
[1673917193425,0.00146463,21113.0,21112.0,2.29214427]
[1673917194733,0.00146463,21113.0,21112.0,2.59214427]
[1673917197352,0.00146463,21113.0,21112.0,2.73380428]
[1673917197877,0.00146463,21113.0,21112.0,3.07085991]
[1673917198357,0.00146463,21113.0,21112.0,3.07084638]
[1673917199380,0.00146463,21113.0,21112.0,2.73379075]
[1673917200151,0.00146463,21113.0,21112.0,3.06961761]
[1673917200690,0.00146463,21113.0,21112.0,1.269047]
[1673917200948,0.00146463,21113.0,21112.0,2.21652336]
[1673917201205,0.00146463,21113.0,21112.0,2.83570543]
[1673917201718,0.00146463,21113.0,21112.0,2.55235848]
[1673917201993,0.00146463,21113.0,21112.0,2.85235848]
[1673917202742,0.00146463,21113.0,21112.0,2.51652336]
[1673917202997,0.00146463,21113.0,21112.0,2.65814873]
[1673917203254,0.00146463,21113.0,21112.0,2.51652336]
[1673917203803,0.00146463,21113.0,21112.0,1.269047]
[1673917204044,0.07736463,21113.0,21112.0,0.473664]
[1673917204297,0.39908363,21113.0,21112.0,0.473664]
[1673917204561,0.58980958,21113.0,21111.0,0.473679]
[1673917204851,0.397719,21112.0,21111.0,0.473679]
[1673917205097,0.076,21112.0,21111.0,0.473679]
[1673917205616,0.075727,21112.0,21111.0,0.473679]
[1673917205884,0.075727,21112.0,21111.0,0.947365]
[1673917206143,0.075727,21112.0,21111.0,1.247365]
[1673917208170,0.08476463,21113.0,21111.0,1.247365]
[1673917208711,0.08476463,21113.0,21111.0,0.947365]
[1673917209220,0.321719,21112.0,21111.0,0.947365]
[1673917209482,0.397919,21112.0,21111.0,0.947365]
[1673917210051,0.0762,21112.0,21111.0,0.947365]
[1673917210292,0.08476463,21113.0,21111.0,1.247365]
[1673917210547,0.00846463,21113.0,21112.0,0.3]
[1673917210818,0.00846463,21113.0,21112.0,1.247328]
[1673917211634,0.00846463,21113.0,21112.0,1.569047]
[1673917212414,0.00146463,21113.0,21112.0,1.269047]
[1673917212667,0.07766463,21113.0,21112.0,0.947328]
[1673917212928,0.07766463,21113.0,21112.0,0.473664]
[1673917213180,0.39938363,21113.0,21111.0,0.473686]
[1673917213445,0.397419,21112.0,21111.0,0.473686]
[1673917213974,0.39784362,21112.0,21110.0,0.473692]
[1673917214226,0.398019,21111.0,21110.0,0.473692]
[1673917214974,0.0763,21111.0,21110.0,0.473692]
[1673917215201,0.0763,21111.0,21110.0,0.947401]
[1673917215470,0.0763,21111.0,21110.0,1.247401]
[1673917216232,0.0763,21111.0,21110.0,0.947401]
[1673917216515,0.076,21112.0,21110.0,1.247401]
[1673917216778,0.00146463,21113.0,21111.0,0.621719]
[1673917217034,0.00146463,21113.0,21112.0,0.473664]
[1673917217325,0.00188925,21113.0,21112.0,0.473664]
[1673917217575,0.07758925,21113.0,21111.0,0.473667]
[1673917217829,0.398019,21112.0,21110.0,0.473709]
[1673917218088,0.397719,21111.0,21110.0,0.473709]
[1673917218343,0.473319,21111.0,21110.0,0.473709]
[1673917218582,0.1516,21111.0,21110.0,0.473709]
[1673917219160,0.1516,21111.0,21109.0,0.473724]
[1673917219400,0.0756,21111.0,21110.0,0.3]
[1673917219617,0.0762,21112.0,21110.0,0.3]
[1673917219872,0.0762,21112.0,21110.0,0.773708]
[1673917220405,0.0762,21112.0,21110.0,0.473708]
[1673917220639,0.473319,21111.0,21109.0,0.473726]
[1673917220908,0.473319,21111.0,21107.0,0.473772]
[1673917220909,0.0763,21110.0,21107.0,0.473772]
[1673917221180,0.1516,21108.0,21107.0,0.473772]
[1673917221447,0.473319,21108.0,21107.0,0.473772]
[1673917222263,0.1516,21108.0,21107.0,0.473772]
[1673917222522,0.473319,21108.0,21107.0,0.473772]
[1673917222773,0.473319,21108.0,21107.0,0.3]
[1673917223214,0.0763,21109.0,21107.0,0.3]
[1673917223446,0.0763,21109.0,21108.0,0.3]
[1673917223890,0.0763,21109.0,21107.0,0.947534]
[1673917224334,0.00042462,21108.0,21107.0,0.947534]
[1673917224562,0.00042462,21108.0,21107.0,0.773758]
[1673917224841,0.00042462,21108.0,21107.0,0.473758]
[1673917225350,0.32214362,21108.0,21107.0,0.473758]
[1673917225659,0.00042462,21108.0,21107.0,0.473758]
[1673917226445,0.22684462,21108.0,21106.0,0.473778]
[1673917226712,0.0763,21107.0,21106.0,0.473778]
[1673917227020,0.07620028,21107.0,21106.0,0.947576]
[1673917227830,0.07620028,21107.0,21106.0,1.247576]
[1673917228092,0.0766249,21107.0,21106.0,1.247576]
[1673917228390,0.0766849,21107.0,21106.0,1.247576]
[1673917228661,0.07626028,21107.0,21106.0,1.247576]
[1673917229183,6e-05,21107.0,21106.0,1.247576]
[1673917229730,6e-05,21107.0,21106.0,1.569295]
[1673917230011,0.0757851,21109.0,21106.0,1.569295]
[1673917230271,0.0757851,21109.0,21107.0,0.3]
[1673917230538,0.0757851,21109.0,21108.0,0.473754]
[1673917230812,0.0757851,21109.0,21108.0,0.773754]
[1673917231866,0.0756,21111.0,21108.0,0.773754]
[1673917231867,0.0762,21111.0,21108.0,0.773754]
[1673917232120,0.0762,21111.0,21108.0,0.89344305]
[1673917232361,0.82876463,21113.0,21109.0,0.3]
[1673917232636,0.82876463,21113.0,21110.0,0.59339305]
[1673917232880,0.41866463,21113.0,21110.0,0.59339305]
[1673917233140,0.0761,21111.0,21109.0,0.47371]
[1673917233401,0.26682595,21111.0,21108.0,0.473736]
[1673917233996,0.0761,21111.0,21108.0,0.473736]
[1673917235317,0.00042462,21110.0,21108.0,0.473736]
[1673917235573,0.00042462,21110.0,21107.0,0.47376]
[1673917235822,0.0757,21109.0,21107.0,0.47376]
[1673917236075,0.321719,21108.0,21105.0,0.473799]
[1673917236378,0.32214362,21107.0,21105.0,0.473799]
[1673917236643,0.00042462,21107.0,21105.0,0.473799]
[1673917237980,0.0757,21108.0,21105.0,0.94762]
[1673917238251,0.885825,21110.0,21105.0,0.94762]
[1673917238252,0.961925,21110.0,21106.0,0.3]
[1673917238530,0.00042462,21109.0,21107.0,0.11968905]
[1673917238801,0.0761,21110.0,21106.0,0.77379]
[1673917239069,0.0761,21111.0,21107.0,1.06723605]
[1673917239605,0.0761,21111.0,21108.0,0.3]
[1673917239861,0.0761,21111.0,21109.0,0.473731]
[1673917242683,0.00042462,21111.0,21109.0,0.473731]
[1673917243975,0.0761,21110.0,21107.0,0.473769]
[1673917244256,0.397719,21109.0,21107.0,0.473769]
[1673917244515,0.39814362,21108.0,21107.0,0.473769]
[1673917245025,0.07642462,21108.0,21107.0,0.473769]
[1673917245280,0.07642462,21108.0,21106.0,0.473795]
[1673917245784,0.07642462,21108.0,21105.0,0.473804]
[1673917246258,0.07642462,21108.0,21104.0,0.61545837]
[1673917246513,0.26715057,21108.0,21104.0,0.473833]
[1673917246988,0.62405963,21111.0,21104.0,1.68619211]
[1673917247248,0.62405963,21111.0,21105.0,1.74331327]
[1673917247249,0.26702595,21111.0,21105.0,1.74331327]
[1673917247540,0.26702595,21111.0,21106.0,2.78045713]
[1673917247794,0.0763,21111.0,21107.0,0.41968905]
[1673917248080,0.0763,21111.0,21108.0,0.947498]
[1673917248302,0.0763,21112.0,21109.0,0.3]
[1673917248551,0.0763,21112.0,21110.0,0.11968905]
[1673917248803,0.07776463,21113.0,21111.0,0.473686]
[1673917249058,0.07776463,21113.0,21111.0,0.11968905]
[1673917249385,0.07776463,21113.0,21111.0,0.3]
[1673917250877,0.00146463,21113.0,21112.0,0.19548905]
[1673917251138,0.00146463,21113.0,21112.0,1.171183]
[1673917251404,0.00146463,21113.0,21112.0,0.773664]
[1673917252211,0.00146463,21113.0,21112.0,1.72117699]
[1673917252483,0.00146463,21113.0,21112.0,2.04290303]
[1673917252749,0.00146463,21113.0,21112.0,2.51656703]
[1673917253262,0.00146463,21113.0,21112.0,1.569047]
[1673917253557,0.00146463,21113.0,21112.0,0.947328]
[1673917254058,0.00146463,21113.0,21112.0,1.247328]
[1673917254325,0.00135516,21113.0,21112.0,1.247328]
[1673917254698,0.00135516,21113.0,21112.0,1.569047]
[1673917255198,0.00135516,21113.0,21112.0,1.247328]
[1673917256474,0.00135516,21113.0,21112.0,2.87914172]
[1673917256742,0.00135516,21113.0,21112.0,2.66665458]
[1673917257705,0.00135516,21113.0,21112.0,1.577547]
[1673917258749,0.00135516,21113.0,21112.0,2.74244307]
[1673917259236,0.00177978,21113.0,21112.0,1.277547]
[1673917259499,0.00135516,21113.0,21112.0,0.955828]
[1673917260044,0.00135516,21113.0,21112.0,0.947328]
[1673917261636,0.00135516,21113.0,21112.0,1.247328]
[1673917262918,0.01035516,21113.0,21112.0,1.250328]
[1673917263495,0.01035516,21113.0,21112.0,1.798147]
[1673917263753,0.01035516,21113.0,21112.0,1.78977237]
[1673917264030,0.01035516,21113.0,21112.0,1.572047]
[1673917264291,0.25108111,21113.0,21112.0,0.003]
[1673917264571,0.57280011,21113.0,21112.0,0.003]
[1673917264831,0.45817416,21113.0,21112.0,0.003]
[1673917265146,0.45859878,21113.0,21112.0,0.003]
[1673917265712,0.44959878,21113.0,21108.0,0.473746]
[1673917265972,0.58864495,21112.0,21108.0,0.473746]
[1673917266226,0.321719,21111.0,21108.0,0.473746]
[1673917266500,0.321719,21110.0,21108.0,0.473746]
[1673917266786,0.321719,21109.0,21108.0,0.473746]
[1673917267050,0.29355,21112.0,21108.0,0.773746]
[1673917267329,0.076,21110.0,21107.0,0.973776]
[1673917267588,0.32214362,21109.0,21108.0,0.003]
[1673917268078,0.321719,21109.0,21108.0,0.003]
[1673917268331,0.398019,21109.0,21108.0,0.003]
[1673917268593,0.39844362,21109.0,21107.0,0.5]
[1673917268844,0.321719,21108.0,21107.0,0.5]
[1673917269375,0.398019,21108.0,21107.0,0.5]
[1673917270125,0.398019,21108.0,21107.0,0.503]
[1673917270397,0.948073,21108.0,21107.0,0.5]
[1673917270654,1.035073,21108.0,21107.0,0.5]
[1673917270915,1.61069895,21108.0,21107.0,0.5]
[1673917271176,1.78542104,21108.0,21107.0,0.5]
[1673917271442,0.80471523,21106.0,21103.0,2.64494168]
[1673917271781,0.1526,21104.0,21103.0,0.01564168]
[1673917272063,0.474319,21104.0,21103.0,0.01564168]
[1673917272557,0.398019,21104.0,21103.0,0.01564168]
[1673917273245,0.488019,21104.0,21103.0,0.01564168]
[1673917273502,0.398019,21104.0,21103.0,0.01564168]
[1673917273768,0.411719,21104.0,21103.0,0.01564168]
[1673917274036,0.80471523,21106.0,21103.0,0.01564168]
[1673917274361,0.09,21104.0,21103.0,0.31564168]
[1673917274574,0.321719,21104.0,21103.0,0.01564168]
[1673917274830,0.09,21104.0,21103.0,0.01564168]
[1673917275098,0.41119052,21104.0,21103.0,0.01564168]
[1673917275365,0.48791514,21104.0,21103.0,0.01564168]
[1673917276420,0.39844362,21104.0,21103.0,0.01564168]
[1673917277243,0.411719,21104.0,21103.0,0.13533073]
[1673917277502,0.411719,21104.0,21103.0,0.96337368]
[1673917277767,0.09,21104.0,21103.0,1.26337368]
[1673917279149,0.80471523,21106.0,21103.0,1.26337368]
[1673917279441,0.09,21104.0,21103.0,1.26337368]
[1673917279711,0.09,21104.0,21103.0,0.96337368]
[1673917279997,0.80471523,21106.0,21103.0,0.96337368]
[1673917280254,0.0763,21105.0,21103.0,0.48950768]
[1673917280525,0.321719,21104.0,21103.0,0.48950768]
[1673917281325,0.75504495,21104.0,21103.0,0.01564168]
[1673917281594,0.564319,21104.0,21103.0,0.01564168]
[1673917281860,0.93109528,21104.0,21103.0,0.01564168]
[1673917282121,1.55493828,21104.0,21103.0,0.01564168]
[1673917282389,0.15,21103.0,21102.0,0.0150066]
[1673917282660,1.098185,21103.0,21102.0,0.0150066]
[1673917282919,0.948185,21103.0,21102.0,0.01494317]
[1673917284069,1.78334819,21103.0,21102.0,0.01494317]
[1673917284335,2.15012447,21103.0,21102.0,0.01494317]
[1673917284875,2.33422447,21103.0,21102.0,0.01494317]
[1673917285128,2.24362447,21103.0,21102.0,0.01494317]
[1673917285653,2.54362447,21103.0,21102.0,0.01494317]
[1673917285906,2.54362447,21103.0,21101.0,0.0150066]
[1673917286185,1.87264303,21102.0,21101.0,0.0150066]
[1673917286444,2.53151903,21102.0,21101.0,0.0150066]
[1673917287739,0.795607,21102.0,21101.0,0.13469565]
[1673917288017,0.887607,21102.0,21101.0,0.01494635]
[1673917288514,0.413719,21102.0,21101.0,0.01494635]
[1673917288846,0.321719,21102.0,21101.0,0.01494635]
[1673917289036,0.412719,21102.0,21101.0,0.01494635]
[1673917289294,0.321719,21102.0,21101.0,0.01494635]
[1673917289549,0.41314362,21102.0,21101.0,0.01494635]
[1673917292882,0.88703162,21102.0,21101.0,0.01494635]
[1673917293677,0.96313162,21102.0,21101.0,0.01494635]
[1673917294019,1.43701962,21102.0,21101.0,0.01494635]
[1673917294480,1.51331962,21102.0,21101.0,0.01494635]
[1673917294730,1.42231962,21102.0,21101.0,0.01494635]
[1673917294978,1.72135018,21102.0,21101.0,0.01494635]
[1673917295246,1.42231962,21102.0,21101.0,0.01494635]
[1673917295485,1.51331962,21102.0,21101.0,0.01494635]
[1673917295745,1.42231962,21102.0,21101.0,0.01494635]
[1673917296012,1.7890959,21102.0,21101.0,0.01494635]
[1673917296280,2.03380409,21102.0,21101.0,0.01494635]
[1673917296591,0.15,21101.0,21100.0,0.00567415]
[1673917296812,1.495741,21101.0,21100.0,0.00567415]
[1673917297027,1.345741,21101.0,21100.0,0.00567415]
[1673917297606,0.87183,21101.0,21100.0,0.00567415]
[1673917298113,0.88663,21101.0,21100.0,0.00567415]
[1673917298411,0.412719,21101.0,21100.0,0.1253632]
[1673917298647,0.1841,21103.0,21100.0,0.00567415]
[1673917298920,0.321719,21102.0,21100.0,0.00567415]
[1673917299220,0.091,21101.0,21100.0,0.00567415]
[1673917299423,0.412719,21101.0,21100.0,0.00567415]
[1673917299691,0.091,21101.0,21100.0,0.00567415]
[1673917300204,0.1841,21103.0,21100.0,0.00567415]
[1673917300502,0.1841,21103.0,21100.0,0.4253632]
[1673917300724,0.1841,21103.0,21100.0,0.30567415]
[1673917301246,0.1841,21103.0,21100.0,0.00567415]
[1673917301506,0.1841,21103.0,21100.0,0.30567415]
[1673917301774,0.1901,21103.0,21100.0,0.30567415]
[1673917302051,0.00042462,21102.0,21100.0,0.30567415]
[1673917302321,0.1841,21103.0,21100.0,0.77960015]
[1673917302590,0.2161,21103.0,21101.0,0.44140805]
[1673917302859,0.1841,21103.0,21102.0,0.71508]
[1673917303142,0.1841,21103.0,21102.0,1.212856]
[1673917303399,0.1841,21103.0,21102.0,1.512856]
[1673917303951,0.1841,21103.0,21102.0,2.46079002]
[1673917304213,0.1901,21103.0,21102.0,2.46079002]
[1673917304678,0.1901,21103.0,21102.0,1.512856]
[1673917304679,0.1841,21103.0,21102.0,1.512856]
[1673917304946,0.19352462,21103.0,21102.0,0.947776]
[1673917305202,0.1841,21103.0,21102.0,0.947776]
[1673917305462,0.1841,21103.0,21102.0,1.247776]
[1673917305463,0.1931,21103.0,21102.0,1.247776]
[1673917305754,0.1841,21103.0,21102.0,1.247776]
[1673917306005,0.1931,21103.0,21102.0,2.51748407]
[1673917306262,0.1841,21103.0,21102.0,2.51748407]
[1673917307256,0.1931,21103.0,21102.0,2.51748407]
[1673917307263,0.1841,21103.0,21102.0,2.51748407]
[1673917307538,0.1931,21103.0,21102.0,2.51748407]
[1673917307778,0.1841,21103.0,21102.0,2.51748407]
[1673917308030,0.19352462,21103.0,21102.0,2.51748407]
[1673917308285,0.1841,21103.0,21102.0,2.21748407]
[1673917308537,0.1841,21103.0,21102.0,1.89576507]
[1673917308801,0.1931,21103.0,21102.0,1.89576507]
[1673917309042,0.1841,21103.0,21102.0,1.89576507]
[1673917309547,0.1841,21103.0,21102.0,2.21748407]
[1673917309806,0.1839,21103.0,21102.0,2.51748407]
[1673917310081,0.1839,21103.0,21102.0,2.64567312]
[1673917310324,0.1839,21103.0,21102.0,2.95996816]
[1673917310590,0.1929,21103.0,21102.0,2.95996816]
[1673917310863,0.2019,21103.0,21102.0,3.22655633]
[1673917311102,0.2019,21103.0,21102.0,4.12870163]
[1673917311603,0.1839,21103.0,21102.0,3.7744942]
[1673917311857,0.1929,21103.0,21102.0,3.7744942]
[1673917312357,0.1929,21103.0,21102.0,3.98678785]
[1673917312614,0.1929,21103.0,21102.0,4.128578]
[1673917312880,0.1929,21103.0,21102.0,5.26736923]
[1673917312881,0.1839,21103.0,21102.0,5.26736923]
[1673917313142,0.1929,21103.0,21102.0,3.89482116]
[1673917313658,0.80471523,21106.0,21102.0,5.71184096]
[1673917313933,0.80471523,21106.0,21105.0,0.74709541]
[1673917314190,0.80471523,21106.0,21105.0,2.44005099]
[1673917314437,0.80471523,21106.0,21105.0,4.74028938]
[1673917314731,0.80471523,21106.0,21105.0,4.38439371]
[1673917314941,0.81271523,21106.0,21105.0,4.38439371]
[1673917315234,0.80471523,21106.0,21105.0,4.24300248]
[1673917315507,0.81271523,21106.0,21105.0,4.25100248]
[1673917316007,0.81271523,21106.0,21105.0,4.21044376]
[1673917316261,0.9958658,21106.0,21105.0,3.29934207]
[1673917316510,0.81271523,21106.0,21105.0,3.30734207]
[1673917316758,0.81271523,21106.0,21105.0,3.90964376]
[1673917317041,0.80471523,21106.0,21105.0,3.90164376]
[1673917317326,0.3908182,21106.0,21105.0,4.43934096]
[1673917317573,0.00592761,21112.0,21106.0,0.15]
[1673917317839,0.00592761,21112.0,21110.0,0.1259]
[1673917318100,0.00592761,21112.0,21111.0,1.742626]
[1673917318356,0.00592761,21112.0,21111.0,2.042626]
[1673917318874,0.00592761,21112.0,21111.0,2.051126]
[1673917319416,0.00592761,21112.0,21111.0,2.177026]
[1673917320175,0.01292761,21112.0,21111.0,2.192026]
[1673917320433,0.01292761,21112.0,21111.0,2.177026]
[1673917320434,0.00592761,21112.0,21111.0,2.177026]
[1673917320695,0.01292761,21112.0,21111.0,2.192026]
[1673917320966,0.05135516,21113.0,21111.0,3.15164674]
[1673917321246,0.00667136,21117.0,21112.0,2.00186786]
[1673917321505,0.00667136,21117.0,21115.0,0.71399169]
[1673917321779,0.00667136,21117.0,21116.0,0.289052]
[1673917321780,0.19782193,21117.0,21116.0,0.289052]
[1673917322053,0.00667136,21117.0,21116.0,1.568274]
[1673917322325,0.00667136,21117.0,21116.0,0.947148]
[1673917322874,0.00709598,21117.0,21116.0,0.947148]
[1673917323161,0.00667136,21117.0,21116.0,1.039148]
[1673917323430,0.00667136,21117.0,21116.0,1.72434969]
[1673917323695,0.00667136,21117.0,21116.0,2.74704269]
[1673917324491,0.00667136,21117.0,21116.0,2.65404269]
[1673917324758,0.00667136,21117.0,21116.0,2.74604269]
[1673917325012,0.00667136,21117.0,21116.0,2.65410269]
[1673917325293,0.00667136,21117.0,21116.0,2.74610269]
[1673917325820,3.6e-07,21117.0,21116.0,2.99129174]
[1673917326093,0.00556876,21118.0,21116.0,3.09293215]
[1673917326349,0.00556876,21118.0,21117.0,1.17631169]
[1673917326661,0.00556876,21118.0,21117.0,2.06684895]
[1673917327196,7.6e-07,21118.0,21117.0,2.06671413]
[1673917327712,7.6e-07,21118.0,21117.0,2.63226613]
[1673917328008,4e-08,21119.0,21118.0,0.15]
[1673917328286,4e-08,21119.0,21118.0,2.03034669]
[1673917328533,4e-08,21119.0,21118.0,2.33034669]
[1673917329322,4e-08,21119.0,21118.0,2.42234669]
[1673917329570,4e-08,21119.0,21118.0,2.33034669]
[1673917329841,4e-08,21119.0,21118.0,2.42234669]
[1673917330086,4e-08,21119.0,21118.0,2.68890261]
[1673917330345,4e-08,21119.0,21118.0,2.42234669]
[1673917331077,4e-08,21119.0,21118.0,2.81455364]
[1673917331338,4e-08,21119.0,21118.0,2.54804669]
[1673917331626,4e-08,21119.0,21118.0,2.45604669]
[1673917332118,4e-08,21119.0,21118.0,2.54804669]
[1673917332372,4e-08,21119.0,21118.0,2.45604669]
[1673917332637,4e-08,21119.0,21118.0,2.54804669]
[1673917332890,4e-08,21119.0,21118.0,2.59389924]
[1673917333149,1.8e-07,21120.0,21119.0,0.15]
[1673917333419,0.00639339,21121.0,21119.0,2.5385231]
[1673917333690,0.00639339,21121.0,21120.0,1.05805569]
[1673917333938,0.00639339,21121.0,21120.0,2.57141581]
[1673917334494,0.00547606,21126.0,21121.0,0.15]
[1673917334743,0.00547606,21126.0,21125.0,0.2508]
[1673917335043,0.00547606,21126.0,21125.0,3.36274674]
[1673917335279,0.00547606,21126.0,21125.0,3.12585769]
[1673917335865,0.00547606,21126.0,21125.0,3.21785769]
[1673917336080,6e-08,21126.0,21125.0,4.37486929]
[1673917336335,0.00807651,21128.0,21126.0,0.82535255]
[1673917336604,0.00807651,21128.0,21127.0,2.008713]
[1673917336867,0.00807651,21128.0,21127.0,2.34441469]
[1673917337132,0.00807651,21128.0,21127.0,1.984613]
[1673917337379,0.0080022,21128.0,21127.0,1.984613]
[1673917337895,0.0080022,21128.0,21127.0,2.076613]
[1673917338168,0.0080022,21128.0,21127.0,1.956613]
[1673917338702,0.0080022,21128.0,21127.0,2.44231469]
[1673917338971,0.0080022,21128.0,21127.0,2.68790374]
[1673917339215,0.0080022,21128.0,21127.0,2.97653478]
[1673917339791,0.00631427,21129.0,21128.0,0.22984299]
[1673917340013,0.00651828,21131.0,21129.0,0.15]
[1673917340274,0.00651828,21131.0,21130.0,2.35342686]
[1673917340518,0.00651828,21131.0,21130.0,2.91372686]
[1673917340795,0.00651828,21131.0,21130.0,2.55014869]
[1673917341088,0.00651828,21131.0,21130.0,2.35012869]
[1673917341870,0.00651828,21131.0,21130.0,2.44212869]
[1673917342402,0.00651828,21131.0,21130.0,2.4866991]
[1673917343437,0.00651828,21131.0,21130.0,1.530527]
[1673917343976,0.00651828,21131.0,21130.0,2.04142869]
[1673917344273,0.00651828,21131.0,21130.0,2.13142869]
[1673917344513,0.00651828,21131.0,21130.0,2.04992869]
[1673917344797,0.00651828,21131.0,21130.0,2.43992869]
[1673917345062,0.00651828,21131.0,21130.0,2.34992869]
[1673917345320,0.00651828,21131.0,21130.0,2.44098869]
[1673917345830,0.00651828,21131.0,21130.0,2.49098869]
[1673917346432,0.19724423,21131.0,21130.0,1.713787]
[1673917346612,0.00651828,21131.0,21130.0,1.56084]
[1673917347672,0.00651828,21131.0,21130.0,1.86084]
[1673917347925,0.00651828,21131.0,21130.0,2.46394169]
[1673917348183,0.00651828,21131.0,21130.0,2.79402369]
[1673917348690,0.00651828,21131.0,21130.0,2.8385941]
[1673917348965,0.00820185,21135.0,21131.0,0.04348172]
[1673917349225,0.00820185,21135.0,21133.0,0.1248]
[1673917349485,0.00820185,21135.0,21134.0,1.04430474]
[1673917349742,0.00820185,21135.0,21134.0,2.77852869]
[1673917350018,0.00820185,21135.0,21134.0,2.65262869]
[1673917350288,0.00820185,21135.0,21134.0,2.91581899]